[Event "Live Chess"]
[Site "Chess.com"]
[Date "2023.05.21"]
[Round "-"]
[White "wot-not"]
[Black "chessfiction"]
[Result "0-1"]
[WhiteElo "1540"]
[BlackElo "2312"]
[TimeControl "300"]
[EndTime "5:08:20 PDT"]
[Termination "chessfiction won by resignation"]

1. d4 {[%clk 0:04:58.4]} 1... d5 {[%clk 0:04:58.7]} 2. c4 {[%clk 0:04:57.5]}
2... c6 {[%clk 0:04:55.2]} 3. Nc3 {[%clk 0:04:55.7]} 3... Nf6 {[%clk 0:04:54.4]}
4. cxd5 {[%clk 0:04:54.9]} 4... cxd5 {[%clk 0:04:53.3]} 5. Bf4 {[%clk
0:04:52.6]} 5... Nc6 {[%clk 0:04:52.5]} 6. e3 {[%clk 0:04:51.6]} 6... Bf5 {[%clk
0:04:51.4]} 7. Bd3 {[%clk 0:04:50.4]} 7... Ne4 {[%clk 0:04:49.8]} 8. Bxe4 {[%clk
0:04:48.1]} 8... dxe4 {[%clk 0:04:49.7]} 9. Nge2 {[%clk 0:04:46]} 9... e6 {[%clk
0:04:48]} 10. O-O {[%clk 0:04:44]} 10... Be7 {[%clk 0:04:46.2]} 11. Nb5 {[%clk
0:04:37.9]} 11... O-O {[%clk 0:04:44]} 12. Nec3 {[%clk 0:04:23.7]} 12... a6
{[%clk 0:04:39.9]} 13. Na3 {[%clk 0:04:21.3]} 13... Nb4 {[%clk 0:04:34.1]} 14.
Qb3 {[%clk 0:04:03.4]} 14... a5 {[%clk 0:04:28.5]} 15. Nc4 {[%clk 0:03:56.9]}
15... Rc8 {[%clk 0:04:23.2]} 16. Ne5 {[%clk 0:03:55.1]} 16... f6 {[%clk
0:04:18.5]} 17. Nc4 {[%clk 0:03:48.9]} 17... h5 {[%clk 0:04:14.8]} 18. Nd2
{[%clk 0:03:41.8]} 18... g5 {[%clk 0:04:00.5]} 19. Bg3 {[%clk 0:03:20.7]} 19...
h4 {[%clk 0:03:48.7]} 20. Bxh4 {[%clk 0:03:19.8]} 20... gxh4 {[%clk 0:03:47.5]}
21. Ndxe4 {[%clk 0:03:19.1]} 21... Rf7 {[%clk 0:03:42.5]} 22. a3 {[%clk
0:03:08.8]} 22... Nd5 {[%clk 0:03:37]} 23. Qxb7 {[%clk 0:02:56.6]} 23... Rg7
{[%clk 0:03:22]} 24. Nxd5 {[%clk 0:02:29.1]} 24... exd5 {[%clk 0:03:14.7]} 25.
Nc3 {[%clk 0:02:28]} 25... Bh3 {[%clk 0:02:53.3]} 26. Nxd5 {[%clk 0:02:04.4]}
26... Bd6 {[%clk 0:02:20.3]} 27. Qxg7+ {[%clk 0:01:35.5]} 27... Kxg7 {[%clk
0:02:17.3]} 28. gxh3 {[%clk 0:01:35.2]} 28... Bxh2+ {[%clk 0:02:15.8]} 29. Kxh2
{[%clk 0:01:31.6]} 29... Qxd5 {[%clk 0:02:15.7]} 30. Rg1+ {[%clk 0:01:29.1]}
30... Kf7 {[%clk 0:02:14.7]} 31. Rg4 {[%clk 0:01:23.6]} 31... Rc2 {[%clk
0:02:13.2]} 32. Rf4 {[%clk 0:01:12.6]} 32... Qd6 {[%clk 0:02:07.3]} 33. Kg1
{[%clk 0:01:06.3]} 33... Qc6 {[%clk 0:01:59.6]} 34. b4 {[%clk 0:00:58.6]} 34...
Rc1+ {[%clk 0:01:57.5]} 35. Rxc1 {[%clk 0:00:57.6]} 35... Qxc1+ {[%clk 0:01:57]}
36. Kg2 {[%clk 0:00:57.4]} 36... a4 {[%clk 0:01:50.3]} 37. e4 {[%clk 0:00:54.5]}
37... Qxf4 {[%clk 0:01:48.2]} 0-1

[Event "Live Chess"]
[Site "Chess.com"]
[Date "2023.05.21"]
[Round "-"]
[White "TheSmoulderingMaster"]
[Black "Mikhail_Golubev"]
[Result "0-1"]
[WhiteElo "1639"]
[BlackElo "2450"]
[TimeControl "300"]
[EndTime "5:08:22 PDT"]
[Termination "Mikhail_Golubev won by resignation"]

1. e4 {[%clk 0:04:58.6]} 1... Na6 {[%clk 0:04:55]} 2. d4 {[%clk 0:04:56.9]} 2...
c6 {[%clk 0:04:54.2]} 3. Bxa6 {[%clk 0:04:52.7]} 3... bxa6 {[%clk 0:04:52.9]} 4.
Nf3 {[%clk 0:04:52.2]} 4... d5 {[%clk 0:04:50.8]} 5. e5 {[%clk 0:04:50.9]} 5...
Bg4 {[%clk 0:04:48.4]} 6. O-O {[%clk 0:04:48.4]} 6... e6 {[%clk 0:04:47.1]} 7.
Qd3 {[%clk 0:04:46.7]} 7... Ne7 {[%clk 0:04:30.3]} 8. Bg5 {[%clk 0:04:44.6]}
8... Qb6 {[%clk 0:04:23.3]} 9. Nbd2 {[%clk 0:04:21.9]} 9... Bf5 {[%clk
0:04:12.9]} 10. Qb3 {[%clk 0:04:10]} 10... h6 {[%clk 0:04:11.3]} 11. Be3 {[%clk
0:04:05.6]} 11... Qxb3 {[%clk 0:03:58.3]} 12. cxb3 {[%clk 0:04:03.7]} 12... Kd7
{[%clk 0:03:26.1]} 13. b4 {[%clk 0:03:54.3]} 13... Bg6 {[%clk 0:03:06.7]} 14. a3
{[%clk 0:03:52.2]} 14... Nf5 {[%clk 0:03:05.3]} 15. Bf4 {[%clk 0:03:34.6]} 15...
Bh7 {[%clk 0:03:01.2]} 16. Nb3 {[%clk 0:03:26.7]} 16... g5 {[%clk 0:02:59.6]}
17. Be3 {[%clk 0:03:14.4]} 17... g4 {[%clk 0:02:56.8]} 18. Nfd2 {[%clk
0:03:12.6]} 18... h5 {[%clk 0:02:55.2]} 19. Rfc1 {[%clk 0:03:08.3]} 19... h4
{[%clk 0:02:48.1]} 20. Nc5+ {[%clk 0:03:04.3]} 20... Bxc5 {[%clk 0:02:45.3]} 21.
Rxc5 {[%clk 0:03:03.4]} 21... g3 {[%clk 0:02:44.3]} 22. hxg3 {[%clk 0:03:02]}
22... hxg3 {[%clk 0:02:43.6]} 23. Bg5 {[%clk 0:02:51.2]} 23... gxf2+ {[%clk
0:02:27.7]} 24. Kxf2 {[%clk 0:02:49.4]} 24... Nxd4 {[%clk 0:02:18.6]} 25. Bf6
{[%clk 0:02:39.4]} 25... Rhg8 {[%clk 0:02:16.9]} 26. Rac1 {[%clk 0:02:33.8]}
26... Rg4 {[%clk 0:02:04.6]} 27. Nf3 {[%clk 0:02:30.5]} 27... Nb3 {[%clk
0:02:00.5]} 28. Rxc6 {[%clk 0:02:18.1]} 28... Nxc1 {[%clk 0:01:58.5]} 29. Rxc1
{[%clk 0:02:17.3]} 29... Rag8 {[%clk 0:01:56.6]} 30. Nh4 {[%clk 0:01:56.1]}
30... Rc4 {[%clk 0:01:48.5]} 31. Rh1 {[%clk 0:01:52.8]} 31... Rc2+ {[%clk
0:01:44.8]} 32. Kf3 {[%clk 0:01:52]} 32... Be4+ {[%clk 0:01:41.9]} 33. Ke3
{[%clk 0:01:48.1]} 33... Rxb2 {[%clk 0:01:38.8]} 34. Rc1 {[%clk 0:01:43.4]}
34... Rb3+ {[%clk 0:01:17.7]} 35. Kf4 {[%clk 0:01:34.9]} 35... Rbg3 {[%clk
0:01:12.9]} 36. Nf3 {[%clk 0:01:19.9]} 36... Rxg2 {[%clk 0:01:09.3]} 37. Ng5
{[%clk 0:01:10.4]} 37... Rf2+ {[%clk 0:01:04.9]} 38. Ke3 {[%clk 0:01:08.8]}
38... Rxf6 {[%clk 0:01:03.3]} 39. exf6 {[%clk 0:01:05.3]} 39... Rxg5 {[%clk
0:01:02.4]} 40. Rc5 {[%clk 0:00:59.8]} 40... Rg3+ {[%clk 0:00:57.5]} 41. Kf4
{[%clk 0:00:58.2]} 41... Rf3+ {[%clk 0:00:55.2]} 42. Ke5 {[%clk 0:00:56.2]}
42... Rf5+ {[%clk 0:00:51]} 43. Kd4 {[%clk 0:00:54.8]} 43... e5+ {[%clk
0:00:49.2]} 44. Ke3 {[%clk 0:00:53.6]} 44... Rxf6 {[%clk 0:00:45.6]} 45. Ra5
{[%clk 0:00:51.8]} 45... Rf3+ {[%clk 0:00:43.4]} 46. Ke2 {[%clk 0:00:50.2]}
46... f5 {[%clk 0:00:39.1]} 47. Rxa6 {[%clk 0:00:48]} 47... Bd3+ {[%clk
0:00:35.8]} 0-1

[Event "Live Chess"]
[Site "Chess.com"]
[Date "2023.05.21"]
[Round "-"]
[White "GMHarry-youtube"]
[Black "ossie57"]
[Result "1-0"]
[WhiteElo "2032"]
[BlackElo "1882"]
[TimeControl "300"]
[EndTime "5:08:42 PDT"]
[Termination "GMHarry-youtube won by resignation"]

1. e4 {[%clk 0:04:59.1]} 1... d6 {[%clk 0:04:55.6]} 2. d4 {[%clk 0:04:55.6]}
2... Nf6 {[%clk 0:04:54.7]} 3. Nc3 {[%clk 0:04:54.4]} 3... Nbd7 {[%clk 0:04:51]}
4. f4 {[%clk 0:04:53]} 4... e5 {[%clk 0:04:49]} 5. Nf3 {[%clk 0:04:51.6]} 5...
exd4 {[%clk 0:04:47.9]} 6. Nxd4 {[%clk 0:04:50.3]} 6... Be7 {[%clk 0:04:47.3]}
7. Be3 {[%clk 0:04:49.2]} 7... O-O {[%clk 0:04:46.6]} 8. Bd3 {[%clk 0:04:45.5]}
8... c6 {[%clk 0:04:45.8]} 9. O-O {[%clk 0:04:43.6]} 9... Nc5 {[%clk 0:04:45]}
10. h3 {[%clk 0:04:39.2]} 10... Nxd3 {[%clk 0:04:44.1]} 11. Qxd3 {[%clk
0:04:36.5]} 11... b5 {[%clk 0:04:37.5]} 12. g4 {[%clk 0:04:34]} 12... Qc7 {[%clk
0:04:32.5]} 13. Qe2 {[%clk 0:04:19.1]} 13... b4 {[%clk 0:04:29.5]} 14. g5 {[%clk
0:04:17.9]} 14... bxc3 {[%clk 0:04:27.1]} 15. gxf6 {[%clk 0:04:16.9]} 15... Bxf6
{[%clk 0:04:22.2]} 16. bxc3 {[%clk 0:04:14.5]} 16... c5 {[%clk 0:04:20.1]} 17.
Nb5 {[%clk 0:04:09.1]} 17... Qd7 {[%clk 0:04:09]} 18. Rad1 {[%clk 0:04:04.5]}
18... Qxh3 {[%clk 0:04:07.3]} 19. Nxd6 {[%clk 0:04:01.1]} 19... Qg3+ {[%clk
0:04:03.7]} 20. Kh1 {[%clk 0:03:58.5]} 20... Qh3+ {[%clk 0:04:02]} 21. Qh2
{[%clk 0:03:19.8]} 21... Qxe3 {[%clk 0:03:59.9]} 22. Rd3 {[%clk 0:03:18.3]}
22... Qxd3 {[%clk 0:02:26.7]} 23. cxd3 {[%clk 0:03:14.6]} 1-0

[Event "Live Chess"]
[Site "Chess.com"]
[Date "2023.05.21"]
[Round "-"]
[White "MarkLim1"]
[Black "LiamClery2020"]
[Result "0-1"]
[WhiteElo "1691"]
[BlackElo "1982"]
[TimeControl "300"]
[EndTime "5:08:45 PDT"]
[Termination "LiamClery2020 won by resignation"]

1. d4 {[%clk 0:04:59.4]} 1... Nf6 {[%clk 0:04:59.9]} 2. Nf3 {[%clk 0:04:58.6]}
2... d5 {[%clk 0:04:57.1]} 3. c4 {[%clk 0:04:57.4]} 3... e6 {[%clk 0:04:51]} 4.
cxd5 {[%clk 0:04:55.4]} 4... exd5 {[%clk 0:04:50.9]} 5. Nc3 {[%clk 0:04:53.9]}
5... Bd6 {[%clk 0:04:49.1]} 6. Qc2 {[%clk 0:04:52.7]} 6... O-O {[%clk
0:04:48.4]} 7. Bg5 {[%clk 0:04:52]} 7... Nc6 {[%clk 0:04:47.7]} 8. e3 {[%clk
0:04:51.1]} 8... Be6 {[%clk 0:04:45.2]} 9. Bd3 {[%clk 0:04:50]} 9... h6 {[%clk
0:04:43.1]} 10. Bh4 {[%clk 0:04:49]} 10... Nb4 {[%clk 0:04:42.3]} 11. Qd1 {[%clk
0:04:45.9]} 11... Nxd3+ {[%clk 0:04:41.5]} 12. Qxd3 {[%clk 0:04:45.2]} 12... Be7
{[%clk 0:04:41.4]} 13. O-O {[%clk 0:04:43.2]} 13... c6 {[%clk 0:04:38.2]} 14.
Rab1 {[%clk 0:04:41.5]} 14... Nd7 {[%clk 0:04:36.9]} 15. Bxe7 {[%clk 0:04:40.2]}
15... Qxe7 {[%clk 0:04:36.8]} 16. b4 {[%clk 0:04:39.3]} 16... Nb6 {[%clk
0:04:34.4]} 17. Nd2 {[%clk 0:04:37.5]} 17... Qf6 {[%clk 0:04:32.2]} 18. a4
{[%clk 0:04:34.9]} 18... Bf5 {[%clk 0:04:28.2]} 19. e4 {[%clk 0:04:32.6]} 19...
dxe4 {[%clk 0:04:27.2]} 20. Ndxe4 {[%clk 0:04:29]} 20... Qg6 {[%clk 0:04:26.4]}
21. Rbe1 {[%clk 0:04:17]} 21... Nd5 {[%clk 0:04:25.4]} 22. f3 {[%clk 0:04:13.9]}
22... Nxb4 {[%clk 0:04:19.9]} 23. Qc4 {[%clk 0:04:05.9]} 23... Na6 {[%clk
0:04:06.6]} 24. Ng3 {[%clk 0:04:01.1]} 24... Bd3 {[%clk 0:04:04.8]} 0-1

[Event "Live Chess"]
[Site "Chess.com"]
[Date "2023.05.21"]
[Round "-"]
[White "JohanKjeldahl"]
[Black "manthanit"]
[Result "1-0"]
[WhiteElo "1866"]
[BlackElo "1095"]
[TimeControl "300"]
[EndTime "5:08:58 PDT"]
[Termination "JohanKjeldahl won by resignation"]

1. c4 {[%clk 0:04:57.5]} 1... e6 {[%clk 0:04:59.2]} 2. Nc3 {[%clk 0:04:55.6]}
2... d6 {[%clk 0:04:58.2]} 3. d4 {[%clk 0:04:53]} 3... g6 {[%clk 0:04:57.6]} 4.
e4 {[%clk 0:04:51.5]} 4... Bg7 {[%clk 0:04:57]} 5. Be3 {[%clk 0:04:50.4]} 5...
Ne7 {[%clk 0:04:54.7]} 6. f3 {[%clk 0:04:49.5]} 6... O-O {[%clk 0:04:53.5]} 7.
Bd3 {[%clk 0:04:48.5]} 7... b6 {[%clk 0:04:49.3]} 8. Qd2 {[%clk 0:04:46.9]} 8...
Bb7 {[%clk 0:04:48.8]} 9. O-O-O {[%clk 0:04:44.5]} 9... Nd7 {[%clk 0:04:39.1]}
10. h4 {[%clk 0:04:42.8]} 10... e5 {[%clk 0:04:33.2]} 11. d5 {[%clk 0:04:40.6]}
11... Nc5 {[%clk 0:04:27.9]} 12. Bc2 {[%clk 0:04:38.6]} 12... a5 {[%clk
0:04:17.4]} 13. h5 {[%clk 0:04:37.2]} 13... Ba6 {[%clk 0:04:14]} 14. b3 {[%clk
0:04:30.9]} 14... Bb7 {[%clk 0:04:10.4]} 15. g4 {[%clk 0:04:24.7]} 15... a4
{[%clk 0:04:05.3]} 16. hxg6 {[%clk 0:04:22.2]} 16... fxg6 {[%clk 0:04:03]} 17.
Qh2 {[%clk 0:04:20.2]} 17... Kf7 {[%clk 0:03:44.1]} 18. Nh3 {[%clk 0:04:08.6]}
18... axb3 {[%clk 0:03:41.7]} 19. Ng5+ {[%clk 0:04:05.6]} 19... Ke8 {[%clk
0:03:38.6]} 20. axb3 {[%clk 0:04:00.6]} 20... Ra1+ {[%clk 0:03:30.7]} 21. Kd2
{[%clk 0:03:58.8]} 21... Rxd1+ {[%clk 0:03:29.5]} 22. Bxd1 {[%clk 0:03:54.1]}
22... Rh8 {[%clk 0:03:18.6]} 23. Bxc5 {[%clk 0:03:50.7]} 23... bxc5 {[%clk
0:03:15.7]} 24. Ne6 {[%clk 0:03:49.4]} 24... Qd7 {[%clk 0:02:42.4]} 25. Nxg7+
{[%clk 0:03:46.8]} 25... Kf7 {[%clk 0:02:40.9]} 26. Ne6 {[%clk 0:03:42.4]} 26...
c6 {[%clk 0:02:11.6]} 27. f4 {[%clk 0:03:35.2]} 27... cxd5 {[%clk 0:02:06.4]}
28. cxd5 {[%clk 0:03:32.9]} 28... Nxd5 {[%clk 0:01:28]} 29. exd5 {[%clk
0:03:29.2]} 29... Bxd5 {[%clk 0:01:27.5]} 30. Ng5+ {[%clk 0:03:26.7]} 30... Ke8
{[%clk 0:01:20.5]} 31. Nxd5 {[%clk 0:03:24.9]} 31... exf4 {[%clk 0:01:09.5]} 32.
Nf6+ {[%clk 0:03:22.2]} 1-0

[Event "Live Chess"]
[Site "Chess.com"]
[Date "2023.05.21"]
[Round "-"]
[White "mattihelenius2"]
[Black "profpirate4"]
[Result "0-1"]
[WhiteElo "491"]
[BlackElo "1337"]
[TimeControl "300"]
[EndTime "5:09:04 PDT"]
[Termination "profpirate4 won by checkmate"]

1. d4 {[%clk 0:04:57.9]} 1... f5 {[%clk 0:04:58.8]} 2. c4 {[%clk 0:04:55.8]}
2... e6 {[%clk 0:04:57.9]} 3. Nf3 {[%clk 0:04:55.2]} 3... Nf6 {[%clk 0:04:55.2]}
4. Ne5 {[%clk 0:04:54.2]} 4... d6 {[%clk 0:04:53.9]} 5. Nf3 {[%clk 0:04:40.9]}
5... Be7 {[%clk 0:04:43.2]} 6. Bg5 {[%clk 0:04:39.4]} 6... O-O {[%clk
0:04:37.4]} 7. e3 {[%clk 0:04:37.4]} 7... Nc6 {[%clk 0:04:33.3]} 8. Nc3 {[%clk
0:04:36.9]} 8... Ne4 {[%clk 0:04:28.9]} 9. Nxe4 {[%clk 0:04:35]} 9... fxe4
{[%clk 0:04:17.6]} 10. Ne5 {[%clk 0:04:23.1]} 10... dxe5 {[%clk 0:04:11.2]} 11.
Bxe7 {[%clk 0:04:21.4]} 11... Qxe7 {[%clk 0:04:10.1]} 12. d5 {[%clk 0:04:18.5]}
12... exd5 {[%clk 0:04:03.7]} 13. cxd5 {[%clk 0:04:17.1]} 13... Qb4+ {[%clk
0:03:58.6]} 14. Ke2 {[%clk 0:04:14.4]} 14... Qxb2+ {[%clk 0:03:55.4]} 15. Qd2
{[%clk 0:04:11.5]} 15... Qxd2+ {[%clk 0:03:54.2]} 16. Kxd2 {[%clk 0:04:10.4]}
16... Ne7 {[%clk 0:03:49]} 17. Bb5 {[%clk 0:04:09.9]} 17... Nxd5 {[%clk
0:03:45.5]} 18. Rhc1 {[%clk 0:04:06.2]} 18... c6 {[%clk 0:03:40.9]} 19. Bc4
{[%clk 0:04:04.9]} 19... Rxf2+ {[%clk 0:03:34.7]} 20. Kd1 {[%clk 0:04:00.4]}
20... Bg4+ {[%clk 0:03:27.3]} 21. Ke1 {[%clk 0:03:56.6]} 21... Rxg2 {[%clk
0:03:26.3]} 22. Bxd5+ {[%clk 0:03:52.5]} 22... cxd5 {[%clk 0:03:20.4]} 23. Rc5
{[%clk 0:03:46.6]} 23... Rf8 {[%clk 0:03:17.2]} 24. Rac1 {[%clk 0:03:44.5]}
24... Rg1+ {[%clk 0:03:14.9]} 25. Kd2 {[%clk 0:03:43.1]} 25... Rg2+ {[%clk
0:03:06.2]} 26. Ke1 {[%clk 0:03:36.4]} 26... d4 {[%clk 0:03:02.2]} 27. exd4
{[%clk 0:03:34.1]} 27... exd4 {[%clk 0:03:00.9]} 28. Rg5 {[%clk 0:03:30.5]}
28... Bf3 {[%clk 0:02:58.1]} 29. Rxg2 {[%clk 0:03:29.4]} 29... Bxg2 {[%clk
0:02:50.5]} 30. Rc4 {[%clk 0:03:26.8]} 30... Rf1+ {[%clk 0:02:36.5]} 31. Ke2
{[%clk 0:03:25]} 31... d3+ {[%clk 0:02:35.5]} 32. Kd2 {[%clk 0:03:21]} 32...
Rf2+ {[%clk 0:02:26.1]} 33. Ke3 {[%clk 0:03:19.3]} 33... Re2+ {[%clk 0:02:24.6]}
34. Kf4 {[%clk 0:03:18]} 34... d2 {[%clk 0:02:23.6]} 35. Rc8+ {[%clk 0:03:16.7]}
35... Kf7 {[%clk 0:02:20]} 36. Rd8 {[%clk 0:03:09.7]} 36... Rf2+ {[%clk
0:02:14.2]} 37. Kg3 {[%clk 0:03:06.9]} 37... Bf3 {[%clk 0:02:10.2]} 38. Kxf2
{[%clk 0:03:05.8]} 38... d1=Q {[%clk 0:02:07.8]} 39. Rxd1 {[%clk 0:03:04.7]}
39... Bxd1 {[%clk 0:02:06.6]} 40. Ke3 {[%clk 0:03:03.8]} 40... Bc2 {[%clk
0:02:00.5]} 41. Kd4 {[%clk 0:03:01.8]} 41... Bd3 {[%clk 0:01:59.1]} 42. Ke5
{[%clk 0:02:59.2]} 42... g5 {[%clk 0:01:51.2]} 43. Kf5 {[%clk 0:02:57.3]} 43...
e3+ {[%clk 0:01:48.1]} 44. Kxg5 {[%clk 0:02:54.1]} 44... e2 {[%clk 0:01:48]} 45.
a3 {[%clk 0:02:53]} 45... e1=Q {[%clk 0:01:47.6]} 46. h4 {[%clk 0:02:51.6]}
46... Qe5+ {[%clk 0:01:43.5]} 47. Kg4 {[%clk 0:02:50.2]} 47... Qe4+ {[%clk
0:01:42.2]} 48. Kg5 {[%clk 0:02:49.4]} 48... Qf5+ {[%clk 0:01:40.6]} 49. Kh6
{[%clk 0:02:46.2]} 49... Qg6# {[%clk 0:01:39.7]} 0-1

[Event "Live Chess"]
[Site "Chess.com"]
[Date "2023.05.21"]
[Round "-"]
[White "viktorskliarov"]
[Black "jbooth"]
[Result "1-0"]
[WhiteElo "2648"]
[BlackElo "1675"]
[TimeControl "300"]
[EndTime "5:09:08 PDT"]
[Termination "viktorskliarov won by resignation"]

1. e4 {[%clk 0:04:58.3]} 1... d6 {[%clk 0:04:58.1]} 2. d4 {[%clk 0:04:56]} 2...
Nf6 {[%clk 0:04:54.1]} 3. Nc3 {[%clk 0:04:55.1]} 3... Nbd7 {[%clk 0:04:53.1]} 4.
f3 {[%clk 0:04:54.1]} 4... e5 {[%clk 0:04:51.6]} 5. Nge2 {[%clk 0:04:51.3]} 5...
c6 {[%clk 0:04:50.4]} 6. Be3 {[%clk 0:04:50.3]} 6... Qc7 {[%clk 0:04:49.5]} 7.
Qd2 {[%clk 0:04:48.4]} 7... Be7 {[%clk 0:04:48.2]} 8. g4 {[%clk 0:04:47.6]} 8...
h6 {[%clk 0:04:46.6]} 9. Ng3 {[%clk 0:04:46.8]} 9... Nb6 {[%clk 0:04:43.6]} 10.
O-O-O {[%clk 0:04:44.8]} 10... a5 {[%clk 0:04:37]} 11. Kb1 {[%clk 0:04:41.2]}
11... a4 {[%clk 0:04:35.3]} 12. Nf5 {[%clk 0:04:30.5]} 12... Bxf5 {[%clk
0:04:32.1]} 13. gxf5 {[%clk 0:04:28.3]} 13... a3 {[%clk 0:04:26.6]} 14. b3
{[%clk 0:04:25.7]} 14... d5 {[%clk 0:04:05.3]} 15. dxe5 {[%clk 0:04:20.5]} 15...
Nfd7 {[%clk 0:03:47]} 16. f4 {[%clk 0:04:16]} 16... Bb4 {[%clk 0:03:42.2]} 17.
exd5 {[%clk 0:04:00.3]} 17... Nxd5 {[%clk 0:03:37.6]} 18. Nxd5 {[%clk
0:03:58.6]} 18... cxd5 {[%clk 0:03:30.9]} 19. Qxb4 {[%clk 0:03:57]} 1-0

[Event "Live Chess"]
[Site "Chess.com"]
[Date "2023.05.21"]
[Round "-"]
[White "Vitalii18a"]
[Black "Ferrarifan27"]
[Result "0-1"]
[WhiteElo "1136"]
[BlackElo "2069"]
[TimeControl "300"]
[EndTime "5:09:12 PDT"]
[Termination "Ferrarifan27 won by checkmate"]

1. e4 {[%clk 0:04:56.3]} 1... e5 {[%clk 0:04:58.6]} 2. Nf3 {[%clk 0:04:54.9]}
2... Nc6 {[%clk 0:04:57]} 3. Bb5 {[%clk 0:04:53.5]} 3... a6 {[%clk 0:04:55.7]}
4. Ba4 {[%clk 0:04:51.8]} 4... Nf6 {[%clk 0:04:54.8]} 5. d3 {[%clk 0:04:50.2]}
5... Be7 {[%clk 0:04:53.9]} 6. c3 {[%clk 0:04:47.6]} 6... d6 {[%clk 0:04:53]} 7.
O-O {[%clk 0:04:45.2]} 7... Bg4 {[%clk 0:04:50.4]} 8. h3 {[%clk 0:04:43.4]} 8...
Bh5 {[%clk 0:04:48.6]} 9. g4 {[%clk 0:04:42.1]} 9... Bg6 {[%clk 0:04:46.4]} 10.
Re1 {[%clk 0:04:37.6]} 10... Qd7 {[%clk 0:04:45.5]} 11. Kg2 {[%clk 0:04:36.2]}
11... h5 {[%clk 0:04:40]} 12. Nh4 {[%clk 0:04:29.9]} 12... hxg4 {[%clk
0:04:37.3]} 13. Nxg6 {[%clk 0:04:27.3]} 13... gxh3+ {[%clk 0:04:35.9]} 14. Kh2
{[%clk 0:04:21.8]} 14... fxg6 {[%clk 0:04:35]} 15. Bg5 {[%clk 0:04:07]} 15...
Ng4+ {[%clk 0:04:33.5]} 16. Kg3 {[%clk 0:03:50]} 16... Bxg5 {[%clk 0:04:29.6]}
17. Qxg4 {[%clk 0:03:44.7]} 17... Bh4+ {[%clk 0:04:27.2]} 18. Kxh3 {[%clk
0:03:39.2]} 18... Bxf2+ {[%clk 0:04:26.2]} 19. Kg2 {[%clk 0:03:30.6]} 19...
Qxg4+ {[%clk 0:04:25.2]} 20. Kxf2 {[%clk 0:03:30.5]} 20... Rh2+ {[%clk
0:04:23.5]} 21. Ke3 {[%clk 0:03:28]} 21... Qf4# {[%clk 0:04:22.7]} 0-1

[Event "Live Chess"]
[Site "Chess.com"]
[Date "2023.05.21"]
[Round "-"]
[White "Brooms1989"]
[Black "Geomorph"]
[Result "1/2-1/2"]
[WhiteElo "1163"]
[BlackElo "1277"]
[TimeControl "300"]
[EndTime "5:09:16 PDT"]
[Termination "Game drawn by repetition"]

1. e4 {[%clk 0:04:57.9]} 1... e5 {[%clk 0:04:59]} 2. Nc3 {[%clk 0:04:55.9]} 2...
Nf6 {[%clk 0:04:55.5]} 3. f4 {[%clk 0:04:54.1]} 3... d5 {[%clk 0:04:55]} 4. fxe5
{[%clk 0:04:52.4]} 4... Nxe4 {[%clk 0:04:54.3]} 5. Nxe4 {[%clk 0:04:51.8]} 5...
dxe4 {[%clk 0:04:49.1]} 6. d4 {[%clk 0:04:50.8]} 6... Nc6 {[%clk 0:04:39.9]} 7.
Bb5 {[%clk 0:04:43.5]} 7... Bd7 {[%clk 0:04:26.6]} 8. Bxc6 {[%clk 0:04:41.3]}
8... Bxc6 {[%clk 0:04:25.1]} 9. Ne2 {[%clk 0:04:38]} 9... Qh4+ {[%clk
0:04:15.4]} 10. g3 {[%clk 0:04:35.6]} 10... Qh3 {[%clk 0:04:14.5]} 11. Be3
{[%clk 0:04:17.1]} 11... Be7 {[%clk 0:03:58.4]} 12. Qd2 {[%clk 0:04:06.2]} 12...
Qe6 {[%clk 0:03:46.8]} 13. O-O-O {[%clk 0:03:55.8]} 13... Qxa2 {[%clk
0:03:44.6]} 14. c3 {[%clk 0:03:44]} 14... Ba4 {[%clk 0:03:33.5]} 15. Qc2 {[%clk
0:03:38.8]} 15... Bxc2 {[%clk 0:03:23.4]} 16. Kxc2 {[%clk 0:03:38.7]} 16... O-O
{[%clk 0:03:19.6]} 17. Ra1 {[%clk 0:03:32.5]} 17... Qd5 {[%clk 0:03:17.8]} 18.
Nf4 {[%clk 0:03:29.5]} 18... Qc6 {[%clk 0:03:10.8]} 19. h4 {[%clk 0:03:23.7]}
19... f6 {[%clk 0:03:00.3]} 20. h5 {[%clk 0:03:12.4]} 20... g5 {[%clk
0:02:48.4]} 21. hxg6 {[%clk 0:03:11.2]} 21... Kg7 {[%clk 0:02:38.4]} 22. Rxh7+
{[%clk 0:03:04.6]} 22... Kg8 {[%clk 0:02:35.5]} 23. Rah1 {[%clk 0:02:57.5]}
23... Qa4+ {[%clk 0:02:16.8]} 24. Kd2 {[%clk 0:02:53.5]} 24... fxe5 {[%clk
0:02:03.4]} 25. Rh8+ {[%clk 0:02:50.8]} 25... Kg7 {[%clk 0:02:02.7]} 26. R1h7+
{[%clk 0:02:45.9]} 26... Kf6 {[%clk 0:02:01.8]} 27. Nd5+ {[%clk 0:02:40.5]}
27... Ke6 {[%clk 0:01:52.8]} 28. Nxc7+ {[%clk 0:02:30]} 28... Kd7 {[%clk
0:01:45.3]} 29. Nxa8 {[%clk 0:02:23.5]} 29... Rxh8 {[%clk 0:01:44]} 30. Rxh8
{[%clk 0:02:21.3]} 30... Qa1 {[%clk 0:01:31.2]} 31. Kc2 {[%clk 0:02:07.5]} 31...
exd4 {[%clk 0:01:28.6]} 32. Bxd4 {[%clk 0:02:03.3]} 32... Qa4+ {[%clk
0:01:20.2]} 33. Kc1 {[%clk 0:02:00.1]} 33... Bg5+ {[%clk 0:01:18.6]} 34. Kb1
{[%clk 0:01:56.9]} 34... Qd1+ {[%clk 0:01:04]} 35. Ka2 {[%clk 0:01:52.7]} 35...
Qa4+ {[%clk 0:01:01.9]} 36. Kb1 {[%clk 0:01:50.8]} 36... Qd1+ {[%clk 0:01:00.9]}
37. Ka2 {[%clk 0:01:49.9]} 37... Qa4+ {[%clk 0:01:00.4]} 38. Kb1 {[%clk
0:01:49.1]} 1/2-1/2

[Event "Live Chess"]
[Site "Chess.com"]
[Date "2023.05.21"]
[Round "-"]
[White "NAZRIZ1977"]
[Black "The_Straightforward_Rook"]
[Result "0-1"]
[WhiteElo "1961"]
[BlackElo "1923"]
[TimeControl "300"]
[EndTime "5:09:30 PDT"]
[Termination "The_Straightforward_Rook won by resignation"]

1. d4 {[%clk 0:04:55.4]} 1... Nf6 {[%clk 0:04:58.7]} 2. Nc3 {[%clk 0:04:54.8]}
2... d5 {[%clk 0:04:57.2]} 3. Bf4 {[%clk 0:04:54.3]} 3... e6 {[%clk 0:04:56.1]}
4. e3 {[%clk 0:04:53.7]} 4... Bb4 {[%clk 0:04:53.6]} 5. Ne2 {[%clk 0:04:52.6]}
5... O-O {[%clk 0:04:52.4]} 6. a3 {[%clk 0:04:51.7]} 6... Bd6 {[%clk 0:04:48.8]}
7. h4 {[%clk 0:04:44.7]} 7... c5 {[%clk 0:04:44.6]} 8. dxc5 {[%clk 0:04:43.1]}
8... Bxf4 {[%clk 0:04:39.4]} 9. h5 {[%clk 0:04:43]} 9... Be5 {[%clk 0:04:31.2]}
10. h6 {[%clk 0:04:32.5]} 10... g6 {[%clk 0:04:29.3]} 11. Nd4 {[%clk 0:04:28.4]}
0-1